[Event "*** Titled Tuesday Blitz"]
[Site "Chess.com"]
[Date "2020.11.24"]
[Round "5"]
[White "ljuks68"]
[Black "Beltraxtor"]
[Result "1-0"]
[WhiteElo "2405"]
[BlackElo "2521"]
[TimeControl "180+1"]
[EndTime "11:11:13 PST"]
[Termination "ljuks68 won by resignation"]

1. e4 {[%clk 0:03:00.9]} 1... Nf6 {[%clk 0:02:59.9]} 2. e5 {[%clk 0:03:00.4]}
2... Nd5 {[%clk 0:03:00.5]} 3. c4 {[%clk 0:03:01]} 3... Nb6 {[%clk 0:03:00.3]}
4. d4 {[%clk 0:03:01.6]} 4... d6 {[%clk 0:03:00.9]} 5. f4 {[%clk 0:03:02.1]}
5... dxe5 {[%clk 0:03:00.4]} 6. fxe5 {[%clk 0:03:01.9]} 6... Nc6 {[%clk
0:03:01.1]} 7. Be3 {[%clk 0:03:00.7]} 7... Bf5 {[%clk 0:03:00.8]} 8. Nc3 {[%clk
0:03:00.7]} 8... e6 {[%clk 0:02:59.1]} 9. Nf3 {[%clk 0:03:01]} 9... Be7 {[%clk
0:02:43.8]} 10. Be2 {[%clk 0:03:00.7]} 10... O-O {[%clk 0:02:18.2]} 11. O-O
{[%clk 0:03:00.1]} 11... Qd7 {[%clk 0:02:14]} 12. Qe1 {[%clk 0:02:41.8]} 12...
Nb4 {[%clk 0:02:04.1]} 13. Rd1 {[%clk 0:02:32.7]} 13... Nc2 {[%clk 0:01:57.4]}
14. Qf2 {[%clk 0:02:32]} 14... Nxe3 {[%clk 0:01:57]} 15. Qxe3 {[%clk 0:02:32.1]}
15... Bg6 {[%clk 0:01:55.9]} 16. b3 {[%clk 0:02:11.5]} 16... Rad8 {[%clk
0:01:47.4]} 17. Ne4 {[%clk 0:02:07]} 17... Qc6 {[%clk 0:01:42.8]} 18. Bd3 {[%clk
0:01:58.7]} 18... Rd7 {[%clk 0:01:35.3]} 19. Nc3 {[%clk 0:01:50.7]} 19... Rfd8
{[%clk 0:01:25.6]} 20. Bxg6 {[%clk 0:01:50]} 20... hxg6 {[%clk 0:01:24.3]} 21.
Ne4 {[%clk 0:01:49.7]} 21... Nc8 {[%clk 0:01:04.9]} 22. Nfg5 {[%clk 0:01:47.3]}
22... Bxg5 {[%clk 0:01:03.6]} 23. Nxg5 {[%clk 0:01:46.6]} 23... Ne7 {[%clk
0:00:47.8]} 24. g4 {[%clk 0:00:44.7]} 24... f6 {[%clk 0:00:08.5]} 25. exf6
{[%clk 0:00:43]} 25... gxf6 {[%clk 0:00:08.8]} 26. Rxf6 {[%clk 0:00:42.4]} 26...
Rd6 {[%clk 0:00:04.5]} 27. Qh3 {[%clk 0:00:37.9]} 27... Kg7 {[%clk 0:00:04.6]}
28. Rf7+ {[%clk 0:00:37.1]} 1-0

[Event "*** Titled Tuesday Blitz"]
[Site "Chess.com"]
[Date "2020.11.24"]
[Round "5"]
[White "VinzentSpitzl"]
[Black "Zhani-Z"]
[Result "0-1"]
[WhiteElo "2364"]
[BlackElo "2523"]
[TimeControl "180+1"]
[EndTime "11:11:14 PST"]
[Termination "Zhani-Z won by checkmate"]

1. e4 {[%clk 0:03:00.9]} 1... e5 {[%clk 0:02:59.4]} 2. Nf3 {[%clk 0:03:01]} 2...
Nc6 {[%clk 0:02:59.6]} 3. Bb5 {[%clk 0:03:01.5]} 3... a6 {[%clk 0:02:59.8]} 4.
Ba4 {[%clk 0:03:01.9]} 4... d6 {[%clk 0:02:59.8]} 5. O-O {[%clk 0:03:00]} 5...
Bd7 {[%clk 0:02:56.5]} 6. d4 {[%clk 0:02:59.5]} 6... b5 {[%clk 0:02:53.7]} 7.
Bb3 {[%clk 0:02:59.4]} 7... Nxd4 {[%clk 0:02:43.8]} 8. Nxd4 {[%clk 0:02:46.4]}
8... exd4 {[%clk 0:02:44.7]} 9. c3 {[%clk 0:02:39.8]} 9... dxc3 {[%clk
0:02:43.2]} 10. Nxc3 {[%clk 0:02:40.7]} 10... Nf6 {[%clk 0:02:40.8]} 11. Bg5
{[%clk 0:02:40.2]} 11... Be7 {[%clk 0:02:39.3]} 12. Rc1 {[%clk 0:02:20.2]} 12...
O-O {[%clk 0:02:34.7]} 13. f4 {[%clk 0:02:00.7]} 13... Be6 {[%clk 0:02:18]} 14.
Nd5 {[%clk 0:01:34.9]} 14... Bxd5 {[%clk 0:02:13.7]} 15. exd5 {[%clk 0:01:27.4]}
15... Ne4 {[%clk 0:02:00.4]} 16. Bxe7 {[%clk 0:01:11.4]} 16... Qxe7 {[%clk
0:02:01.3]} 17. Qc2 {[%clk 0:01:08.4]} 17... Rac8 {[%clk 0:01:44.5]} 18. Rfe1
{[%clk 0:01:03.1]} 18... f5 {[%clk 0:01:43.3]} 19. Qc6 {[%clk 0:00:50.8]} 19...
Qf6 {[%clk 0:01:42.4]} 20. Rcd1 {[%clk 0:00:49.5]} 20... Qxb2 {[%clk 0:01:37.5]}
21. Qxa6 {[%clk 0:00:46.7]} 21... Qf2+ {[%clk 0:01:33.1]} 22. Kh1 {[%clk
0:00:46.6]} 22... Ra8 {[%clk 0:01:22.2]} 23. Qc6 {[%clk 0:00:37.6]} 23... Qa7
{[%clk 0:01:00.9]} 24. Rf1 {[%clk 0:00:15.9]} 24... Nf2+ {[%clk 0:00:58.9]} 25.
Rxf2 {[%clk 0:00:16.4]} 25... Qxf2 {[%clk 0:00:59.1]} 26. Qxc7 {[%clk 0:00:17]}
26... Rae8 {[%clk 0:00:58.7]} 27. h3 {[%clk 0:00:13.9]} 27... Qxf4 {[%clk
0:00:58.3]} 28. Qc6 {[%clk 0:00:09.9]} 28... Qg3 {[%clk 0:00:55.5]} 29. Qxb5
{[%clk 0:00:08.8]} 29... f4 {[%clk 0:00:54.8]} 30. Qd3 {[%clk 0:00:03.2]} 30...
f3 {[%clk 0:00:54.4]} 31. Rf1 {[%clk 0:00:01.4]} 31... Qxg2# {[%clk 0:00:53.7]}
0-1

[Event "*** Titled Tuesday Blitz"]
[Site "Chess.com"]
[Date "2020.11.24"]
[Round "5"]
[White "mikheeva86"]
[Black "BJthechessgod"]
[Result "1-0"]
[WhiteElo "1978"]
[BlackElo "2216"]
[TimeControl "180+1"]
[EndTime "11:11:14 PST"]
[Termination "mikheeva86 won by checkmate"]

1. e4 {[%clk 0:03:00.9]} 1... c5 {[%clk 0:02:51.3]} 2. Nc3 {[%clk 0:02:59.1]}
2... Nc6 {[%clk 0:02:43.9]} 3. g3 {[%clk 0:02:59.1]} 3... g6 {[%clk 0:02:43.3]}
4. Bg2 {[%clk 0:02:59.5]} 4... Bg7 {[%clk 0:02:44.1]} 5. d3 {[%clk 0:02:59.2]}
5... e6 {[%clk 0:02:38.6]} 6. Be3 {[%clk 0:02:59.3]} 6... b6 {[%clk 0:02:34]} 7.
Qd2 {[%clk 0:02:52.9]} 7... Nge7 {[%clk 0:02:33.8]} 8. Bh6 {[%clk 0:02:49.5]}
8... O-O {[%clk 0:02:28.7]} 9. h4 {[%clk 0:02:45.8]} 9... d5 {[%clk 0:02:20.4]}
10. h5 {[%clk 0:02:39.6]} 10... dxe4 {[%clk 0:02:14.4]} 11. hxg6 {[%clk
0:02:21]} 11... Nf5 {[%clk 0:02:06]} 12. Bxg7 {[%clk 0:02:15.5]} 12... Kxg7
{[%clk 0:02:02]} 13. Bxe4 {[%clk 0:01:48]} 13... hxg6 {[%clk 0:01:53.1]} 14.
Bxc6 {[%clk 0:01:35.8]} 14... Rb8 {[%clk 0:01:46.5]} 15. g4 {[%clk 0:01:27]}
15... Nd4 {[%clk 0:01:42.8]} 16. Qh6+ {[%clk 0:01:06.7]} 16... Kf6 {[%clk
0:01:42.7]} 17. Qf4+ {[%clk 0:01:00.3]} 17... Ke7 {[%clk 0:01:38.9]} 18. Qxb8
{[%clk 0:00:59]} 18... Nxc6 {[%clk 0:01:39.5]} 19. Qf4 {[%clk 0:00:54.3]} 19...
Nd4 {[%clk 0:01:32.7]} 20. O-O-O {[%clk 0:00:52.1]} 20... b5 {[%clk 0:01:32.9]}
21. Qg5+ {[%clk 0:00:47.5]} 21... f6 {[%clk 0:01:30.5]} 22. Qxc5+ {[%clk
0:00:46.6]} 22... Kf7 {[%clk 0:01:28.3]} 23. Nxb5 {[%clk 0:00:35.7]} 23... Nxb5
{[%clk 0:01:22.1]} 24. Qxb5 {[%clk 0:00:34.8]} 24... Kg7 {[%clk 0:01:21.8]} 25.
Nf3 {[%clk 0:00:26.8]} 25... Rf7 {[%clk 0:01:17.9]} 26. Rh3 {[%clk 0:00:20.9]}
26... Rb7 {[%clk 0:01:17.8]} 27. Qc4 {[%clk 0:00:20.1]} 27... Qb6 {[%clk
0:01:17]} 28. Qc3 {[%clk 0:00:19.2]} 28... Rc7 {[%clk 0:01:16.3]} 29. Qb3 {[%clk
0:00:17.8]} 29... Qc6 {[%clk 0:01:14]} 30. Rdh1 {[%clk 0:00:17]} 30... g5 {[%clk
0:01:01.9]} 31. Rh7+ {[%clk 0:00:16.5]} 31... Kg8 {[%clk 0:01:01.5]} 32. Rxc7
{[%clk 0:00:15.7]} 32... Qxc7 {[%clk 0:01:00.6]} 33. d4 {[%clk 0:00:12.5]} 33...
Kg7 {[%clk 0:00:57.3]} 34. Qe3 {[%clk 0:00:10.9]} 34... Qb6 {[%clk 0:00:53.4]}
35. Nxg5 {[%clk 0:00:09.9]} 35... fxg5 {[%clk 0:00:52.3]} 36. Qxg5+ {[%clk
0:00:10.2]} 36... Kf7 {[%clk 0:00:52.7]} 37. Rh7+ {[%clk 0:00:09.8]} 37... Kf8
{[%clk 0:00:51.8]} 38. Qe7+ {[%clk 0:00:09.8]} 38... Kg8 {[%clk 0:00:50.8]} 39.
Qf7# {[%clk 0:00:10.2]} 1-0

[Event "*** Titled Tuesday Blitz"]
[Site "Chess.com"]
[Date "2020.11.24"]
[Round "5"]
[White "RD4ever"]
[Black "azikom"]
[Result "1/2-1/2"]
[WhiteElo "2821"]
[BlackElo "2602"]
[TimeControl "180+1"]
[EndTime "11:11:18 PST"]
[Termination "Game drawn by repetition"]

1. e4 {[%clk 0:03:00.9]} 1... e5 {[%clk 0:02:59.3]} 2. Nf3 {[%clk 0:03:00.4]}
2... Nc6 {[%clk 0:02:59.1]} 3. Bc4 {[%clk 0:02:53.8]} 3... Bc5 {[%clk
0:02:58.2]} 4. d3 {[%clk 0:02:53.7]} 4... d6 {[%clk 0:02:58]} 5. O-O {[%clk
0:02:52.5]} 5... Be6 {[%clk 0:02:56.3]} 6. Bb3 {[%clk 0:02:49]} 6... Nf6 {[%clk
0:02:52.8]} 7. c3 {[%clk 0:02:40.6]} 7... Bxb3 {[%clk 0:02:50.6]} 8. axb3 {[%clk
0:02:30.6]} 8... a6 {[%clk 0:02:50]} 9. b4 {[%clk 0:02:30.6]} 9... Ba7 {[%clk
0:02:46.9]} 10. Be3 {[%clk 0:02:30.4]} 10... O-O {[%clk 0:02:44]} 11. Nbd2
{[%clk 0:02:29.7]} 11... h6 {[%clk 0:02:42]} 12. Nc4 {[%clk 0:02:26]} 12... Re8
{[%clk 0:02:41.5]} 13. Na5 {[%clk 0:02:12.3]} 13... Nxa5 {[%clk 0:02:33.4]} 14.
Rxa5 {[%clk 0:02:13.2]} 14... Bxe3 {[%clk 0:02:30]} 15. fxe3 {[%clk 0:02:14.1]}
15... c5 {[%clk 0:01:35.7]} 16. Ra4 {[%clk 0:01:55.5]} 16... b5 {[%clk
0:01:32.1]} 17. Ra3 {[%clk 0:01:49.9]} 17... cxb4 {[%clk 0:01:31.8]} 18. cxb4
{[%clk 0:01:50.8]} 18... Qb6 {[%clk 0:01:31.7]} 19. Qd2 {[%clk 0:01:49.2]} 19...
d5 {[%clk 0:01:29.3]} 20. exd5 {[%clk 0:01:39.3]} 20... Nxd5 {[%clk 0:01:28.9]}
21. Re1 {[%clk 0:01:39.8]} 21... Rad8 {[%clk 0:01:26.6]} 22. Kh1 {[%clk
0:01:20.2]} 22... e4 {[%clk 0:01:23.9]} 23. dxe4 {[%clk 0:01:16.2]} 23... Nf6
{[%clk 0:01:22.3]} 24. Rd3 {[%clk 0:01:09.9]} 24... Nxe4 {[%clk 0:01:21.6]} 25.
Rxd8 {[%clk 0:01:06.6]} 25... Rxd8 {[%clk 0:01:15.2]} 26. Qc2 {[%clk 0:01:06]}
26... Qg6 {[%clk 0:01:08]} 27. Kg1 {[%clk 0:01:04.7]} 27... Re8 {[%clk
0:00:59.3]} 28. Nd4 {[%clk 0:01:01]} 28... Qd6 {[%clk 0:00:55.2]} 29. Qc6 {[%clk
0:00:55.5]} 29... Qxc6 {[%clk 0:00:54.6]} 30. Nxc6 {[%clk 0:00:56.4]} 30... Re6
{[%clk 0:00:51.5]} 31. Nd4 {[%clk 0:00:56.4]} 31... Rf6 {[%clk 0:00:49.5]} 32.
Re2 {[%clk 0:00:51.3]} 32... g6 {[%clk 0:00:47.2]} 33. Rc2 {[%clk 0:00:50.6]}
33... Kg7 {[%clk 0:00:37.7]} 34. Nf3 {[%clk 0:00:37.6]} 34... Rd6 {[%clk
0:00:30.4]} 35. Nd4 {[%clk 0:00:37.6]} 35... Rf6 {[%clk 0:00:30.4]} 36. Nf3
{[%clk 0:00:37.6]} 36... Rd6 {[%clk 0:00:29.6]} 37. Nd4 {[%clk 0:00:32.9]} 37...
Rf6 {[%clk 0:00:28.8]} 1/2-1/2

[Event "*** Titled Tuesday Blitz"]
[Site "Chess.com"]
[Date "2020.11.24"]
[Round "5"]
[White "Sergienko_Sergey"]
[Black "Neftegor"]
[Result "0-1"]
[WhiteElo "2337"]
[BlackElo "2507"]
[TimeControl "180+1"]
[EndTime "11:11:19 PST"]
[Termination "Neftegor won by resignation"]

1. e4 {[%clk 0:02:59.5]} 1... e5 {[%clk 0:02:55.5]} 2. Nf3 {[%clk 0:02:58.5]}
2... Nc6 {[%clk 0:02:54.5]} 3. Bb5 {[%clk 0:02:58.2]} 3... a6 {[%clk 0:02:53.9]}
4. Ba4 {[%clk 0:02:57.9]} 4... Nf6 {[%clk 0:02:53.9]} 5. Qe2 {[%clk 0:02:57.9]}
5... b5 {[%clk 0:02:50.7]} 6. Bb3 {[%clk 0:02:57]} 6... Bc5 {[%clk 0:02:50.4]}
7. c3 {[%clk 0:02:53.1]} 7... d6 {[%clk 0:02:50.3]} 8. h3 {[%clk 0:02:51]} 8...
O-O {[%clk 0:02:46]} 9. O-O {[%clk 0:02:49.8]} 9... h6 {[%clk 0:02:44.5]} 10.
Rd1 {[%clk 0:02:47.9]} 10... Bb6 {[%clk 0:02:42]} 11. d4 {[%clk 0:02:46.2]}
11... Qe8 {[%clk 0:02:41.9]} 12. dxe5 {[%clk 0:02:29.4]} 12... Nxe5 {[%clk
0:02:39.7]} 13. Nh4 {[%clk 0:02:24.7]} 13... Bb7 {[%clk 0:02:34.7]} 14. Nd2
{[%clk 0:02:18.7]} 14... c5 {[%clk 0:02:25.8]} 15. Nf5 {[%clk 0:02:14.8]} 15...
Rd8 {[%clk 0:02:20.6]} 16. Bc2 {[%clk 0:02:11.3]} 16... Ng6 {[%clk 0:02:13.3]}
17. Qf3 {[%clk 0:02:01.9]} 17... Qe5 {[%clk 0:02:06.8]} 18. a4 {[%clk
0:01:50.6]} 18... d5 {[%clk 0:02:04.3]} 19. exd5 {[%clk 0:01:41.7]} 19... Bxd5
{[%clk 0:02:04.1]} 20. Qg3 {[%clk 0:01:41.6]} 20... Qxg3 {[%clk 0:02:03.9]} 21.
Nxg3 {[%clk 0:01:38.6]} 21... Nf4 {[%clk 0:02:02.5]} 22. axb5 {[%clk 0:01:36.1]}
22... axb5 {[%clk 0:02:01.7]} 23. Ra6 {[%clk 0:01:34.5]} 23... Bc7 {[%clk
0:01:58.2]} 24. f3 {[%clk 0:01:30.8]} 24... Rfe8 {[%clk 0:01:54.8]} 25. Nde4
{[%clk 0:01:25.7]} 25... Bxe4 {[%clk 0:01:38]} 26. fxe4 {[%clk 0:01:22.4]} 26...
Rxd1+ {[%clk 0:01:31]} 27. Bxd1 {[%clk 0:01:22]} 27... Nxh3+ {[%clk 0:01:21.4]}
28. gxh3 {[%clk 0:01:21.2]} 28... Bxg3 {[%clk 0:01:21.1]} 29. Bxh6 {[%clk
0:01:19.8]} 29... Nxe4 {[%clk 0:01:17.6]} 30. Be3 {[%clk 0:01:17.1]} 30... Nxc3
{[%clk 0:01:10.8]} 31. bxc3 {[%clk 0:01:13.5]} 31... Rxe3 {[%clk 0:01:10.5]} 32.
Ra8+ {[%clk 0:01:06.3]} 32... Kh7 {[%clk 0:01:09.9]} 33. Bc2+ {[%clk 0:01:02]}
33... g6 {[%clk 0:01:08.6]} 34. Kg2 {[%clk 0:00:45.1]} 34... Rxc3 {[%clk
0:01:06.9]} 35. Be4 {[%clk 0:00:43.7]} 35... Kh6 {[%clk 0:00:59.7]} 36. Ra7
{[%clk 0:00:38.7]} 36... f5 {[%clk 0:00:59.2]} 37. Bf3 {[%clk 0:00:36]} 37...
Bf4 {[%clk 0:00:58]} 38. Ra6 {[%clk 0:00:33.5]} 38... b4 {[%clk 0:00:56.6]} 39.
Bd5 {[%clk 0:00:31.1]} 39... Rd3 {[%clk 0:00:50.5]} 40. Bf7 {[%clk 0:00:30.5]}
40... Rd6 {[%clk 0:00:50.6]} 41. Rxd6 {[%clk 0:00:26.9]} 41... Bxd6 {[%clk
0:00:50.3]} 42. Kf3 {[%clk 0:00:26.9]} 42... Kg5 {[%clk 0:00:50.4]} 43. Be8
{[%clk 0:00:26.3]} 43... b3 {[%clk 0:00:47.2]} 0-1

[Event "*** Titled Tuesday Blitz"]
[Site "Chess.com"]
[Date "2020.11.24"]
[Round "5"]
[White "Artyom_ChessMate"]
[Black "Agoking701"]
[Result "1-0"]
[WhiteElo "2509"]
[BlackElo "2349"]
[TimeControl "180+1"]
[EndTime "11:11:21 PST"]
[Termination "Artyom_ChessMate won by resignation"]

1. e4 {[%clk 0:03:00.9]} 1... e5 {[%clk 0:02:58]} 2. Nf3 {[%clk 0:03:00.8]} 2...
Nc6 {[%clk 0:02:58.2]} 3. Bb5 {[%clk 0:03:01.4]} 3... a6 {[%clk 0:02:56.5]} 4.
Bxc6 {[%clk 0:03:01.7]} 4... dxc6 {[%clk 0:02:56.1]} 5. O-O {[%clk 0:03:02.6]}
5... f6 {[%clk 0:02:49.6]} 6. d4 {[%clk 0:03:01.6]} 6... exd4 {[%clk 0:02:50.4]}
7. Nxd4 {[%clk 0:03:02.5]} 7... Bc5 {[%clk 0:02:46.7]} 8. Qh5+ {[%clk 0:03:02]}
8... Kf8 {[%clk 0:02:29.8]} 9. Qxc5+ {[%clk 0:03:02.9]} 9... Ne7 {[%clk
0:02:30.4]} 10. Nf5 {[%clk 0:03:00.1]} 10... Bxf5 {[%clk 0:02:29.1]} 11. exf5
{[%clk 0:03:01]} 11... b6 {[%clk 0:02:27.4]} 12. Qc4 {[%clk 0:02:57.4]} 12...
Qe8 {[%clk 0:02:22.8]} 13. Re1 {[%clk 0:02:49.3]} 13... Qh5 {[%clk 0:02:17.6]}
14. Nc3 {[%clk 0:02:14]} 14... Qxf5 {[%clk 0:02:14.3]} 15. Bf4 {[%clk
0:02:08.1]} 15... b5 {[%clk 0:02:04]} 16. Qe2 {[%clk 0:02:03.1]} 16... Re8
{[%clk 0:01:55.5]} 17. Bxc7 {[%clk 0:02:01.4]} 17... Kf7 {[%clk 0:01:55.1]} 18.
Qd2 {[%clk 0:01:41.8]} 18... b4 {[%clk 0:01:41.1]} 19. Ne4 {[%clk 0:01:38.7]}
19... Nc8 {[%clk 0:01:31]} 20. Nd6+ {[%clk 0:01:37.4]} 20... Nxd6 {[%clk
0:01:29.9]} 21. Bxd6 {[%clk 0:01:38.3]} 21... a5 {[%clk 0:01:22.1]} 22. h3
{[%clk 0:01:29.1]} 22... Rxe1+ {[%clk 0:01:06.4]} 23. Rxe1 {[%clk 0:01:30]}
23... Rd8 {[%clk 0:01:06.7]} 24. Qe2 {[%clk 0:01:27]} 24... Kg6 {[%clk
0:00:56.5]} 25. Bg3 {[%clk 0:01:16.4]} 25... h5 {[%clk 0:00:53.9]} 26. h4 {[%clk
0:01:06.3]} 26... a4 {[%clk 0:00:45.5]} 27. Qe4 {[%clk 0:01:04.9]} 27... Rd2
{[%clk 0:00:42]} 28. Qxf5+ {[%clk 0:00:45.8]} 28... Kxf5 {[%clk 0:00:42.9]} 29.
Rc1 {[%clk 0:00:46.3]} 29... c5 {[%clk 0:00:43.3]} 30. b3 {[%clk 0:00:42.4]}
30... a3 {[%clk 0:00:42.3]} 31. Kf1 {[%clk 0:00:42.5]} 31... g5 {[%clk
0:00:33.9]} 32. Ke1 {[%clk 0:00:41.6]} 32... Rd4 {[%clk 0:00:34.3]} 33. Rd1
{[%clk 0:00:36]} 33... Re4+ {[%clk 0:00:27.6]} 34. Kf1 {[%clk 0:00:36.2]} 34...
gxh4 {[%clk 0:00:28.5]} 35. Bd6 {[%clk 0:00:36.3]} 35... Kg4 {[%clk 0:00:22.8]}
36. Bxc5 {[%clk 0:00:34.7]} 36... f5 {[%clk 0:00:23.1]} 37. Rd4 {[%clk
0:00:34.6]} 37... Kf4 {[%clk 0:00:21.2]} 38. Rxe4+ {[%clk 0:00:34.3]} 38... fxe4
{[%clk 0:00:20.3]} 39. Bxb4 {[%clk 0:00:35.2]} 1-0

[Event "*** Titled Tuesday Blitz"]
[Site "Chess.com"]
[Date "2020.11.24"]
[Round "5"]
[White "sboshaon21"]
[Black "MasterMK73"]
[Result "0-1"]
[WhiteElo "2086"]
[BlackElo "2275"]
[TimeControl "180+1"]
[EndTime "11:11:21 PST"]
[Termination "MasterMK73 won on time"]

1. e4 {[%clk 0:03:00.9]} 1... c5 {[%clk 0:02:59]} 2. Nf3 {[%clk 0:03:01]} 2...
a6 {[%clk 0:02:58]} 3. d4 {[%clk 0:03:01.1]} 3... cxd4 {[%clk 0:02:56.5]} 4.
Nxd4 {[%clk 0:03:02]} 4... Nf6 {[%clk 0:02:55.8]} 5. Nc3 {[%clk 0:03:00.2]} 5...
e5 {[%clk 0:02:54.8]} 6. Nb3 {[%clk 0:02:48.4]} 6... Bb4 {[%clk 0:02:54.4]} 7.
Be2 {[%clk 0:02:41.1]} 7... Nxe4 {[%clk 0:02:36.8]} 8. O-O {[%clk 0:02:30.5]}
8... Nxc3 {[%clk 0:02:28.8]} 9. bxc3 {[%clk 0:02:31.4]} 9... Bxc3 {[%clk
0:02:28.8]} 10. Ba3 {[%clk 0:02:19.6]} 10... Bxa1 {[%clk 0:02:26.4]} 11. Qxa1
{[%clk 0:02:18.4]} 11... Qf6 {[%clk 0:02:14.6]} 12. Re1 {[%clk 0:01:39.6]} 12...
Nc6 {[%clk 0:02:07.5]} 13. g3 {[%clk 0:01:20.7]} 13... b5 {[%clk 0:01:38.4]} 14.
Bc5 {[%clk 0:01:15.1]} 14... d6 {[%clk 0:01:34.5]} 15. Ba3 {[%clk 0:00:50.1]}
15... O-O {[%clk 0:01:32.6]} 16. Rd1 {[%clk 0:00:47.2]} 16... b4 {[%clk
0:01:28.6]} 17. Bb2 {[%clk 0:00:46.4]} 17... Bb7 {[%clk 0:01:28.2]} 18. f4
{[%clk 0:00:38.7]} 18... Qh6 {[%clk 0:01:24.5]} 19. Bf3 {[%clk 0:00:20.5]} 19...
exf4 {[%clk 0:01:17.4]} 20. Bc1 {[%clk 0:00:19.7]} 20... Qg6 {[%clk 0:00:53]}
21. Bxf4 {[%clk 0:00:17.6]} 21... Rad8 {[%clk 0:00:51]} 22. a3 {[%clk
0:00:14.8]} 22... Qxc2 {[%clk 0:00:48]} 23. Nd4 {[%clk 0:00:06.5]} 23... Nxd4
{[%clk 0:00:46.3]} 24. Bxb7 {[%clk 0:00:06.1]} 24... Ne2+ {[%clk 0:00:44.4]} 25.
Kh1 {[%clk 0:00:04.9]} 25... Nxf4 {[%clk 0:00:41.4]} 26. gxf4 {[%clk 0:00:05.8]}
26... b3 {[%clk 0:00:38.3]} 27. Bd5 {[%clk 0:00:04.2]} 27... b2 {[%clk
0:00:35.4]} 28. Qb1 {[%clk 0:00:03]} 28... Rc8 {[%clk 0:00:33.9]} 0-1

[Event "*** Titled Tuesday Blitz"]
[Site "Chess.com"]
[Date "2020.11.24"]
[Round "5"]
[White "Salem-AR"]
[Black "burbur555"]
[Result "1-0"]
[WhiteElo "2903"]
[BlackElo "2600"]
[TimeControl "180+1"]
[EndTime "11:11:22 PST"]
[Termination "Salem-AR won by resignation"]

1. e4 {[%clk 0:03:00.9]} 1... c6 {[%clk 0:02:59.6]} 2. d4 {[%clk 0:02:55]} 2...
d5 {[%clk 0:03:00]} 3. e5 {[%clk 0:02:55.6]} 3... Bf5 {[%clk 0:02:58.7]} 4. Nf3
{[%clk 0:02:55.8]} 4... e6 {[%clk 0:02:58.4]} 5. Be2 {[%clk 0:02:56.4]} 5... h6
{[%clk 0:02:57.8]} 6. O-O {[%clk 0:02:55.9]} 6... Ne7 {[%clk 0:02:57.7]} 7. c3
{[%clk 0:02:52.7]} 7... Bh7 {[%clk 0:02:56.9]} 8. a4 {[%clk 0:02:50.4]} 8... a5
{[%clk 0:02:54.1]} 9. Na3 {[%clk 0:02:48.8]} 9... Ng6 {[%clk 0:02:53.2]} 10. Bd3
{[%clk 0:02:38.1]} 10... Be7 {[%clk 0:02:52]} 11. g3 {[%clk 0:02:36]} 11... O-O
{[%clk 0:02:51.5]} 12. h4 {[%clk 0:02:31.4]} 12... Re8 {[%clk 0:02:51]} 13. Nc2
{[%clk 0:02:27.2]} 13... c5 {[%clk 0:02:46.9]} 14. h5 {[%clk 0:01:50.7]} 14...
Nf8 {[%clk 0:02:46.2]} 15. Bxh7+ {[%clk 0:01:46]} 15... Nxh7 {[%clk 0:02:45.7]}
16. dxc5 {[%clk 0:01:44.1]} 16... Bxc5 {[%clk 0:02:44]} 17. Nfd4 {[%clk
0:01:41.2]} 17... Nc6 {[%clk 0:02:28.6]} 18. f4 {[%clk 0:01:18.3]} 18... f6
{[%clk 0:02:20.5]} 19. exf6 {[%clk 0:01:10.8]} 19... Qxf6 {[%clk 0:02:09.1]} 20.
Be3 {[%clk 0:01:07.1]} 20... e5 {[%clk 0:02:02]} 21. Nb5 {[%clk 0:01:00.5]}
21... Bxe3+ {[%clk 0:01:58.8]} 22. Nxe3 {[%clk 0:01:01.1]} 22... d4 {[%clk
0:01:56.9]} 23. Nd5 {[%clk 0:00:54.7]} 23... Qe6 {[%clk 0:01:55.1]} 24. Nbc7
{[%clk 0:00:49.1]} 24... Qh3 {[%clk 0:01:54.5]} 25. Qf3 {[%clk 0:00:47.8]} 25...
e4 {[%clk 0:01:51.8]} 26. Qg2 {[%clk 0:00:46.4]} 26... Qxg2+ {[%clk 0:01:41.6]}
27. Kxg2 {[%clk 0:00:46.2]} 27... d3 {[%clk 0:01:34.8]} 28. Rfe1 {[%clk
0:00:44.5]} 28... Rad8 {[%clk 0:01:28.1]} 29. Nxe8 {[%clk 0:00:44.4]} 29... Rxe8
{[%clk 0:01:27.6]} 30. Rad1 {[%clk 0:00:40.4]} 30... Kf7 {[%clk 0:01:25.7]} 31.
Nc7 {[%clk 0:00:38.8]} 31... Re7 {[%clk 0:01:23.9]} 32. Nb5 {[%clk 0:00:39.4]}
32... Nf6 {[%clk 0:01:20.5]} 33. Nd6+ {[%clk 0:00:39.6]} 33... Kf8 {[%clk
0:01:19.7]} 34. g4 {[%clk 0:00:34.3]} 34... Re6 {[%clk 0:01:17.7]} 35. Nxb7
{[%clk 0:00:20]} 35... Nxg4 {[%clk 0:01:15.8]} 36. Nc5 {[%clk 0:00:20]} 36...
Rd6 {[%clk 0:01:12.1]} 37. Nxe4 {[%clk 0:00:19.5]} 37... Rd5 {[%clk 0:01:11]}
38. Kf3 {[%clk 0:00:19.6]} 38... Nf6 {[%clk 0:01:07.1]} 39. Nxf6 {[%clk
0:00:19.9]} 39... gxf6 {[%clk 0:01:06.9]} 40. Re6 {[%clk 0:00:20.6]} 40... Ne7
{[%clk 0:01:06.7]} 41. Rxf6+ {[%clk 0:00:20.4]} 41... Kg7 {[%clk 0:01:06.9]} 42.
Re6 {[%clk 0:00:20.6]} 42... Kf7 {[%clk 0:01:06.4]} 43. Re3 {[%clk 0:00:20.5]}
43... Rxh5 {[%clk 0:01:05.8]} 44. Rexd3 {[%clk 0:00:19.7]} 44... Rh2 {[%clk
0:01:05.4]} 45. R1d2 {[%clk 0:00:19.3]} 45... Rh1 {[%clk 0:01:04.5]} 46. Rd1
{[%clk 0:00:19.7]} 46... Rh2 {[%clk 0:01:03.6]} 47. R3d2 {[%clk 0:00:20]} 1-0